[Event "Sunway Sitges Chess Festival"]
[Date "2024.12.22"]
[White "Moussard, Jules"]
[Black "Vetokhin, Savva"]
[WhiteElo "2649"]
[BlackElo "2502"]
[Round "10.1"]
[Result "1/2-1/2"]
[TimeControl "40/5400+30:1800+30"]

1. e4 {[%clk 1:21:29]} 1... c5 {[%clk 1:30:47]} 2. Nf3 {[%clk 1:21:54]} 2... g6
{[%clk 1:31:11]} 3. d4 {[%clk 1:21:38]} 3... cxd4 {[%clk 1:31:34]} 4. Nxd4
{[%clk 1:22:04]} 4... Nc6 {[%clk 1:31:51]} 5. c4 {[%clk 1:22:08]} 5... Nf6
{[%clk 1:32:15]} 6. Nc3 {[%clk 1:22:32]} 6... d6 {[%clk 1:32:39]} 7. Nc2 {[%clk
1:22:33]} 7... Bg7 {[%clk 1:32:20]} 8. Be2 {[%clk 1:21:50]} 8... O-O {[%clk
1:32:41]} 9. O-O {[%clk 1:22:00]} 9... Nd7 {[%clk 1:32:34]} 10. Bd2 {[%clk
1:22:22]} 10... Nc5 {[%clk 1:32:24]} 11. b4 {[%clk 1:22:35]} 11... Ne6 {[%clk
1:29:48]} 12. Rc1 {[%clk 1:22:00]} 12... Ned4 {[%clk 1:24:28]} 13. Nxd4 {[%clk
1:22:04]} 13... Nxd4 {[%clk 1:24:47]} 14. Bd3 {[%clk 1:22:30]} 14... e5 {[%clk
1:17:28]} 15. Ne2 {[%clk 1:21:11]} 15... Nxe2+ {[%clk 1:13:59]} 16. Bxe2 {[%clk
1:15:25]} 16... Be6 {[%clk 1:02:27]} 17. b5 {[%clk 0:50:52]} 17... Qh4 {[%clk
0:54:43]} 18. Be3 {[%clk 0:45:49]} 18... Rfd8 {[%clk 0:49:52]} 19. Qd2 {[%clk
0:45:09]} 19... Qe7 {[%clk 0:49:00]} 20. a4 {[%clk 0:36:15]} 20... f5 {[%clk
0:46:40]} 21. f3 {[%clk 0:35:40]} 21... a6 {[%clk 0:41:20]} 22. a5 {[%clk
0:32:09]} 22... Rd7 {[%clk 0:37:29]} 23. Rfd1 {[%clk 0:29:28]} 23... Bf6 {[%clk
0:35:15]} 24. Rb1 {[%clk 0:25:52]} 24... axb5 {[%clk 0:29:30]} 25. cxb5 {[%clk
0:22:03]} 25... d5 {[%clk 0:29:19]} 26. exd5 {[%clk 0:21:40]} 26... Rxd5 {[%clk
0:28:25]} 27. Qe1 {[%clk 0:21:46]} 27... Rxd1 {[%clk 0:25:08]} 28. Rxd1 {[%clk
0:21:44]} 28... Qa3 {[%clk 0:24:42]} 29. Bb6 {[%clk 0:20:59]} 29... Be7 {[%clk
0:24:47]} 30. a6 {[%clk 0:17:46]} 30... bxa6 {[%clk 0:23:58]} 31. bxa6 {[%clk
0:18:10]} 31... Bc5+ {[%clk 0:20:45]} 32. Bxc5 {[%clk 0:18:29]} 32... Qxc5+
{[%clk 0:21:12]} 33. Qf2 {[%clk 0:16:19]} 33... Qxf2+ {[%clk 0:19:36]} 34. Kxf2
{[%clk 0:16:46]} 34... Kf7 {[%clk 0:18:22]} 35. Ke3 {[%clk 0:15:46]} 35... Ra7
{[%clk 0:14:59]} 36. g3 {[%clk 0:15:27]} 36... g5 {[%clk 0:13:16]} 37. f4 {[%clk
0:12:55]} 37... exf4+ {[%clk 0:10:15]} 38. gxf4 {[%clk 0:13:16]} 38... g4 {[%clk
0:10:23]} 39. Rd6 {[%clk 0:04:16]} 39... h5 {[%clk 0:09:21]} 40. Rb6 {[%clk
0:30:41]} 40... Bc8 {[%clk 0:37:42]} 41. Bc4+ {[%clk 0:26:27]} 41... Kg7 {[%clk
0:35:56]} 42. Rc6 {[%clk 0:26:51]} 42... Bd7 {[%clk 0:35:32]} 43. Rb6 {[%clk
0:26:58]} 43... Bc8 {[%clk 0:35:49]} 44. Rc6 {[%clk 0:27:24]} 44... Bd7 {[%clk
0:36:15]} 45. Rd6 {[%clk 0:27:48]} 45... Bc8 {[%clk 0:32:00]} 46. Kd4 {[%clk
0:26:17]} 46... h4 {[%clk 0:30:24]} 47. Kc5 {[%clk 0:21:00]} 47... g3 {[%clk
0:27:54]} 48. hxg3 {[%clk 0:18:44]} 48... hxg3 {[%clk 0:26:59]} 49. Kb6 {[%clk
0:18:06]} 49... g2 {[%clk 0:21:23]} 50. Rd1 {[%clk 0:18:26]} 50... Bxa6 {[%clk
0:17:49]} 51. Bxa6 {[%clk 0:18:22]} 51... Re7 {[%clk 0:18:15]} 52. Rg1 {[%clk
0:09:36]} 52... Re6+ {[%clk 0:18:39]} 53. Kb7 {[%clk 0:08:42]} 53... Rg6 {[%clk
0:17:26]} 54. Be2 {[%clk 0:09:00]} 54... Kf8 {[%clk 0:17:37]} 55. Kc7 {[%clk
0:06:46]} 55... Ke7 {[%clk 0:17:35]} 56. Kb7 {[%clk 0:03:14]} 56... Kd6 {[%clk
0:16:41]} 57. Bf3 {[%clk 0:02:45]} 57... Rg3 {[%clk 0:17:07]} 58. Bxg2 {[%clk
0:03:06]} 58... Rg4 {[%clk 0:17:33]} 59. Rd1+ {[%clk 0:02:40]} 59... Ke7 {[%clk
0:17:51]} 60. Bd5 {[%clk 0:03:03]} 60... Rxf4 {[%clk 0:18:16]} 61. Kc6 {[%clk
0:03:30]} 61... Kf6 {[%clk 0:18:05]} 62. Kd6 {[%clk 0:03:29]} 62... Ra4 {[%clk
0:18:30]} 63. Re1 {[%clk 0:03:53]} 63... Ra6+ {[%clk 0:18:50]} 64. Bc6 {[%clk
0:04:22]} 64... Kg5 {[%clk 0:19:04]} 65. Rc1 {[%clk 0:04:45]} 65... Ra2 {[%clk
0:19:08]} 66. Bd5 {[%clk 0:05:06]} 66... Re2 {[%clk 0:19:34]} 67. Rc8 {[%clk
0:05:23]} 67... f4 {[%clk 0:19:21]} 68. Rg8+ {[%clk 0:05:22]} 68... Kh4 {[%clk
0:19:39]} 69. Kc5 {[%clk 0:04:02]} 69... Kh3 {[%clk 0:19:37]} 70. Kd4 {[%clk
0:04:25]} 70... Rd2+ {[%clk 0:19:50]} 71. Ke5 {[%clk 0:04:01]} 71... Rxd5+
{[%clk 0:20:10]} 72. Kxd5 {[%clk 0:04:09]} 72... f3 {[%clk 0:20:37]} 73. Ke4
{[%clk 0:04:04]} 73... f2 {[%clk 0:21:03]} 74. Rf8 {[%clk 0:04:28]} 74... Kg2
{[%clk 0:21:30]} 75. Rxf2+ {[%clk 0:04:45]} 75... Kxf2 {[%clk 0:21:53]} 1/2-1/2

[Variant "Standard"]
[Site "Europe Echecs"]

[Event "Sunway Sitges Chess Festival"]
[Date "2024.12.22"]
[White "Tin, Jingyao"]
[Black "Ilamparthi A R"]
[WhiteElo "2480"]
[BlackElo "2391"]
[Round "10.2"]
[Result "1/2-1/2"]
[TimeControl "40/5400+30:1800+30"]

1. d4 {[%clk 1:30:48]} 1... Nf6 {[%clk 1:30:53]} 2. c4 {[%clk 1:31:10]} 2... g6
{[%clk 1:31:19]} 3. Nc3 {[%clk 1:31:33]} 3... Bg7 {[%clk 1:31:41]} 4. e4 {[%clk
1:31:54]} 4... d6 {[%clk 1:32:06]} 5. Nf3 {[%clk 1:32:17]} 5... O-O {[%clk
1:32:28]} 6. Be2 {[%clk 1:32:43]} 6... e5 {[%clk 1:32:51]} 7. O-O {[%clk
1:33:06]} 7... b6 {[%clk 1:33:17]} 8. Be3 {[%clk 1:18:22]} 8... Nc6 {[%clk
1:30:01]} 9. d5 {[%clk 1:15:58]} 9... Ne7 {[%clk 1:30:24]} 10. Nd2 {[%clk
1:16:16]} 10... a5 {[%clk 1:28:07]} 11. a3 {[%clk 1:15:16]} 11... h5 {[%clk
1:28:28]} 12. f3 {[%clk 1:12:17]} 12... Nh7 {[%clk 1:28:19]} 13. b4 {[%clk
1:11:01]} 13... axb4 {[%clk 1:28:06]} 14. axb4 {[%clk 1:11:19]} 14... Rxa1
{[%clk 1:28:30]} 15. Qxa1 {[%clk 1:11:47]} 15... f5 {[%clk 1:28:51]} 16. Qa7
{[%clk 1:00:53]} 16... Bd7 {[%clk 1:09:25]} 17. c5 {[%clk 0:58:45]} 17... bxc5
{[%clk 0:49:33]} 18. bxc5 {[%clk 0:58:55]} 18... fxe4 {[%clk 0:48:54]} 19. fxe4
{[%clk 0:56:47]} 19... Rxf1+ {[%clk 0:49:07]} 20. Bxf1 {[%clk 0:55:51]} 20...
dxc5 {[%clk 0:46:13]} 21. Nb3 {[%clk 0:50:19]} 21... c6 {[%clk 0:29:07]} 22. d6
{[%clk 0:31:49]} 22... Nc8 {[%clk 0:27:32]} 23. Bc4+ {[%clk 0:30:23]} 23... Kf8
{[%clk 0:15:56]} 24. Qb7 {[%clk 0:21:54]} 24... Ke8 {[%clk 0:12:11]} 25. Bxc5
{[%clk 0:09:24]} 25... Bf8 {[%clk 0:12:27]} 26. Qb4 {[%clk 0:07:16]} 26... Qf6
{[%clk 0:08:52]} 27. Ba6 {[%clk 0:06:49]} 27... Nxd6 {[%clk 0:07:59]} 28. Qb8+
{[%clk 0:06:03]} 28... Kf7 {[%clk 0:08:17]} 29. Qa7 {[%clk 0:05:19]} 29... Qe6
{[%clk 0:03:37]} 30. Bf2 {[%clk 0:01:24]} 30... Qxb3 {[%clk 0:02:05]} 31. Qxd7+
{[%clk 0:01:50]} 31... Be7 {[%clk 0:01:25]} 32. Qxc6 {[%clk 0:01:47]} 32... Nf6
{[%clk 0:01:48]} 33. Bd3 {[%clk 0:00:45]} 33... Nfxe4 {[%clk 0:00:53]} 34. Bxe4
{[%clk 0:00:32]} 34... Nxe4 {[%clk 0:01:18]} 35. Qxe4 {[%clk 0:00:52]} 35...
Qxc3 {[%clk 0:01:46]} 36. h3 {[%clk 0:00:33]} 36... Qc1+ {[%clk 0:01:41]} 37.
Kh2 {[%clk 0:00:49]} 37... Qg5 {[%clk 0:01:05]} 38. Qd5+ {[%clk 0:00:39]} 38...
Kg7 {[%clk 0:01:06]} 39. Qd7 {[%clk 0:00:47]} 39... Kh6 {[%clk 0:00:56]} 40. Be1
{[%clk 0:30:32]} 40... Bc5 {[%clk 0:30:36]} 41. Qe8 {[%clk 0:24:09]} 41... Qf6
{[%clk 0:17:20]} 42. Bd2+ {[%clk 0:21:44]} 42... Kg7 {[%clk 0:17:32]} 43. Qd7+
{[%clk 0:22:10]} 43... Be7 {[%clk 0:17:08]} 44. Qd5 {[%clk 0:20:38]} 44... Qf5
{[%clk 0:12:05]} 45. Qb7 {[%clk 0:20:37]} 45... Kf7 {[%clk 0:12:04]} 46. Qd5+
{[%clk 0:20:27]} 46... Qe6 {[%clk 0:12:27]} 47. Qxe6+ {[%clk 0:19:44]} 47...
Kxe6 {[%clk 0:12:51]} 48. Kg3 {[%clk 0:20:14]} 48... Kf5 {[%clk 0:13:10]} 49.
Kf3 {[%clk 0:20:17]} 49... e4+ {[%clk 0:13:30]} 50. Ke2 {[%clk 0:20:44]} 50...
g5 {[%clk 0:13:52]} 51. Bc1 {[%clk 0:19:24]} 51... g4 {[%clk 0:14:15]} 52. Bd2
{[%clk 0:18:35]} 52... Bd6 {[%clk 0:13:58]} 53. Bc1 {[%clk 0:18:34]} 53... Bf4
{[%clk 0:14:09]} 54. Ba3 {[%clk 0:18:54]} 54... Kg5 {[%clk 0:13:45]} 55. Be7+
{[%clk 0:19:14]} 55... Kf5 {[%clk 0:14:10]} 1/2-1/2

[Variant "Standard"]
[Site "Europe Echecs"]

[Event "Sunway Sitges Chess Festival"]
[Date "2024.12.22"]
[White "Gholami Orimi, Mahdi"]
[Black "Li, Di"]
[WhiteElo "2402"]
[BlackElo "2440"]
[Round "10.3"]
[Result "1/2-1/2"]
[TimeControl "40/5400+30:1800+30"]

1. d4 {[%clk 1:30:28]} 1... Nf6 {[%clk 1:30:41]} 2. c4 {[%clk 1:30:56]} 2... g6
{[%clk 1:30:51]} 3. g3 {[%clk 1:31:19]} 3... c6 {[%clk 1:31:01]} 4. Bg2 {[%clk
1:31:02]} 4... d5 {[%clk 1:31:24]} 5. Qa4 {[%clk 1:29:09]} 5... Nfd7 {[%clk
1:31:36]} 6. cxd5 {[%clk 1:23:08]} 6... Nb6 {[%clk 1:31:59]} 7. Qb3 {[%clk
1:13:40]} 7... cxd5 {[%clk 1:32:19]} 8. Nc3 {[%clk 1:14:06]} 8... Nc6 {[%clk
1:30:25]} 9. e3 {[%clk 1:12:02]} 9... Bg7 {[%clk 1:25:11]} 10. Nge2 {[%clk
1:11:26]} 10... e6 {[%clk 1:25:17]} 11. O-O {[%clk 1:10:27]} 11... O-O {[%clk
1:25:44]} 12. Qd1 {[%clk 1:08:18]} 12... Nc4 {[%clk 1:15:37]} 13. b3 {[%clk
1:04:16]} 13... Nd6 {[%clk 1:16:03]} 14. Ba3 {[%clk 1:03:25]} 14... a5 {[%clk
1:16:27]} 15. Nf4 {[%clk 1:02:57]} 15... Re8 {[%clk 1:11:12]} 16. Qe2 {[%clk
0:51:02]} 16... b6 {[%clk 1:09:00]} 17. Rfc1 {[%clk 0:50:23]} 17... Ba6 {[%clk
1:09:06]} 18. Qd2 {[%clk 0:45:04]} 18... Rc8 {[%clk 1:08:45]} 19. Bxd6 {[%clk
0:39:16]} 19... Qxd6 {[%clk 1:08:21]} 20. Bf1 {[%clk 0:39:33]} 20... Bb7 {[%clk
1:06:11]} 21. Nd3 {[%clk 0:38:40]} 21... Na7 {[%clk 0:59:21]} 22. Rc2 {[%clk
0:36:22]} 22... Rc7 {[%clk 0:58:22]} 23. Rac1 {[%clk 0:36:48]} 23... Rec8 {[%clk
0:58:34]} 24. Nb1 {[%clk 0:36:28]} 24... Bc6 {[%clk 0:53:26]} 25. a4 {[%clk
0:35:23]} 25... Bf8 {[%clk 0:50:25]} 26. Ne5 {[%clk 0:33:20]} 26... Be8 {[%clk
0:50:26]} 27. Rxc7 {[%clk 0:29:17]} 27... Rxc7 {[%clk 0:50:52]} 28. Rxc7 {[%clk
0:28:41]} 28... Qxc7 {[%clk 0:51:17]} 29. Qc3 {[%clk 0:28:21]} 29... Qd8 {[%clk
0:49:52]} 30. Qc1 {[%clk 0:25:12]} 30... f6 {[%clk 0:46:10]} 31. Nd3 {[%clk
0:24:39]} 31... g5 {[%clk 0:42:59]} 32. Nc3 {[%clk 0:24:36]} 32... Bg6 {[%clk
0:38:27]} 33. Nb5 {[%clk 0:19:41]} 33... Nxb5 {[%clk 0:38:41]} 34. axb5 {[%clk
0:20:09]} 34... Be8 {[%clk 0:38:53]} 35. Nb2 {[%clk 0:19:41]} 35... Bd7 {[%clk
0:37:26]} 36. Na4 {[%clk 0:19:42]} 36... Qb8 {[%clk 0:37:27]} 37. Qc2 {[%clk
0:19:33]} 1/2-1/2

[Variant "Standard"]
[Site "Europe Echecs"]

[Event "Sunway Sitges Chess Festival"]
[Date "2024.12.22"]
[White "Gorshtein, Ido"]
[Black "Gavrilescu, David"]
[WhiteElo "2422"]
[BlackElo "2549"]
[Round "10.4"]
[Result "1-0"]
[TimeControl "40/5400+30:1800+30"]

1. c4 {[%clk 1:30:55]} 1... e6 {[%clk 1:30:37]} 2. Nc3 {[%clk 1:31:16]} 2... d5
{[%clk 1:30:34]} 3. d4 {[%clk 1:31:41]} 3... Nf6 {[%clk 1:30:28]} 4. cxd5 {[%clk
1:32:05]} 4... exd5 {[%clk 1:30:35]} 5. Bg5 {[%clk 1:32:28]} 5... c6 {[%clk
1:30:10]} 6. e3 {[%clk 1:32:47]} 6... h6 {[%clk 1:28:43]} 7. Bh4 {[%clk
1:32:57]} 7... Be7 {[%clk 1:29:05]} 8. Bd3 {[%clk 1:33:19]} 8... O-O {[%clk
1:29:15]} 9. Nge2 {[%clk 1:33:12]} 9... Ne8 {[%clk 1:28:23]} 10. Bg3 {[%clk
1:33:33]} 10... Nd6 {[%clk 1:28:19]} 11. O-O {[%clk 1:33:58]} 11... Re8 {[%clk
1:26:27]} 12. b4 {[%clk 1:30:20]} 12... Na6 {[%clk 1:16:15]} 13. b5 {[%clk
1:25:56]} 13... Nb4 {[%clk 1:03:11]} 14. bxc6 {[%clk 1:23:07]} 14... bxc6 {[%clk
1:03:28]} 15. Bb1 {[%clk 1:22:49]} 15... a5 {[%clk 1:02:11]} 16. Na4 {[%clk
1:16:02]} 16... Nc4 {[%clk 0:55:35]} 17. Nf4 {[%clk 1:12:54]} 17... Na3 {[%clk
0:49:36]} 18. Qb3 {[%clk 1:04:51]} 18... Nxb1 {[%clk 0:45:01]} 19. Rfxb1 {[%clk
1:04:59]} 19... Bf5 {[%clk 0:36:11]} 20. Rc1 {[%clk 1:04:17]} 20... Rb8 {[%clk
0:29:23]} 21. Qd1 {[%clk 1:02:48]} 21... Rc8 {[%clk 0:29:10]} 22. Rc3 {[%clk
0:54:32]} 22... Na6 {[%clk 0:26:04]} 23. Rac1 {[%clk 0:52:26]} 23... c5 {[%clk
0:22:17]} 24. Nxc5 {[%clk 0:40:55]} 24... Nxc5 {[%clk 0:22:42]} 25. dxc5 {[%clk
0:41:17]} 25... Bf6 {[%clk 0:23:07]} 26. Ne2 {[%clk 0:32:10]} 26... Bxc3 {[%clk
0:20:21]} 27. Rxc3 {[%clk 0:30:54]} 27... Bg4 {[%clk 0:19:35]} 28. f3 {[%clk
0:31:14]} 28... Bd7 {[%clk 0:20:01]} 29. Qxd5 {[%clk 0:26:36]} 29... Be6 {[%clk
0:11:02]} 30. Qxd8 {[%clk 0:27:00]} 30... Rexd8 {[%clk 0:11:30]} 31. Nd4 {[%clk
0:25:25]} 31... Bxa2 {[%clk 0:09:34]} 32. c6 {[%clk 0:25:49]} 32... a4 {[%clk
0:06:03]} 33. c7 {[%clk 0:24:49]} 33... Re8 {[%clk 0:06:16]} 34. Nb5 {[%clk
0:23:40]} 34... Be6 {[%clk 0:06:19]} 35. Nd6 {[%clk 0:19:12]} 35... Kf8 {[%clk
0:06:12]} 36. Nxc8 {[%clk 0:19:11]} 36... Rxc8 {[%clk 0:06:31]} 37. Bd6+ {[%clk
0:14:13]} 37... Ke8 {[%clk 0:06:55]} 38. e4 {[%clk 0:14:37]} 38... Kd7 {[%clk
0:01:59]} 39. e5 {[%clk 0:14:58]} 39... h5 {[%clk 0:02:10]} 40. Kf2 {[%clk
0:44:49]} 40... Ra8 {[%clk 0:31:53]} 41. Kg3 {[%clk 0:34:35]} 41... g5 {[%clk
0:14:41]} 42. h4 {[%clk 0:33:42]} 42... f6 {[%clk 0:11:07]} 43. Rd3 {[%clk
0:31:28]} 43... gxh4+ {[%clk 0:03:10]} 44. Kxh4 {[%clk 0:31:19]} 44... f5 {[%clk
0:01:12]} 45. Kxh5 {[%clk 0:29:45]} 45... Rg8 {[%clk 0:01:05]} 46. Rd2 {[%clk
0:27:20]} 46... Bc4 {[%clk 0:00:44]} 47. Rc2 {[%clk 0:22:10]} 47... Bb3 {[%clk
0:00:38]} 48. Rc3 {[%clk 0:18:28]} 48... Be6 {[%clk 0:00:34]} 49. c8=Q+ {[%clk
0:16:01]} 49... Rxc8 {[%clk 0:00:58]} 50. Rxc8 {[%clk 0:16:01]} 50... Kxc8
{[%clk 0:00:58]} 51. Kg5 {[%clk 0:16:49]} 51... Kd8 {[%clk 0:00:37]} 52. Kf6
{[%clk 0:16:48]} 52... Kd7 {[%clk 0:00:35]} 53. Ba3 {[%clk 0:16:39]} 53... f4
{[%clk 0:00:46]} 54. Kg5 {[%clk 0:16:56]} 54... Bc4 {[%clk 0:00:55]} 55. Kxf4
{[%clk 0:17:16]} 55... Ke6 {[%clk 0:00:50]} 56. Bb2 {[%clk 0:17:17]} 56... Bf1
{[%clk 0:00:50]} 57. g4 {[%clk 0:17:37]} 57... Be2 {[%clk 0:01:16]} 58. Kg3
{[%clk 0:17:52]} 58... a3 {[%clk 0:01:17]} 59. Ba1 {[%clk 0:18:18]} 59... Kf7
{[%clk 0:01:24]} 60. f4 {[%clk 0:18:20]} 60... Kg6 {[%clk 0:01:28]} 61. Kh4
{[%clk 0:18:41]} 61... Bd3 {[%clk 0:01:14]} 62. f5+ {[%clk 0:18:57]} 1-0

[Variant "Standard"]
[Site "Europe Echecs"]

[Event "Sunway Sitges Chess Festival"]
[Date "2024.12.22"]
[White "Alekseenko, Kirill"]
[Black "Anwesh, Upadhyaya"]
[WhiteElo "2673"]
[BlackElo "2379"]
[Round "10.5"]
[Result "1-0"]
[TimeControl "40/5400+30:1800+30"]

1. e4 {[%clk 1:26:23]} 1... e5 {[%clk 1:28:23]} 2. Nf3 {[%clk 1:26:45]} 2... Nc6
{[%clk 1:28:31]} 3. Bb5 {[%clk 1:26:57]} 3... a6 {[%clk 1:28:38]} 4. Ba4 {[%clk
1:27:18]} 4... f5 {[%clk 1:28:18]} 5. d3 {[%clk 1:25:05]} 5... fxe4 {[%clk
1:25:24]} 6. dxe4 {[%clk 1:25:06]} 6... Nf6 {[%clk 1:25:40]} 7. Bg5 {[%clk
1:13:11]} 7... d6 {[%clk 1:23:38]} 8. Bxf6 {[%clk 1:08:49]} 8... Qxf6 {[%clk
1:17:35]} 9. Nc3 {[%clk 1:09:15]} 9... Bg4 {[%clk 0:53:34]} 10. Nd5 {[%clk
0:54:23]} 10... Qd8 {[%clk 0:53:45]} 11. h3 {[%clk 0:52:20]} 11... Bxf3 {[%clk
0:39:42]} 12. Qxf3 {[%clk 0:51:44]} 12... b5 {[%clk 0:39:48]} 13. Qc3 {[%clk
0:49:17]} 13... Nd4 {[%clk 0:36:10]} 14. Bb3 {[%clk 0:47:43]} 14... c6 {[%clk
0:34:44]} 15. Ne3 {[%clk 0:45:46]} 15... g6 {[%clk 0:30:20]} 16. a4 {[%clk
0:45:08]} 16... Bh6 {[%clk 0:25:12]} 17. h4 {[%clk 0:38:08]} 17... Rf8 {[%clk
0:18:11]} 18. h5 {[%clk 0:37:59]} 18... b4 {[%clk 0:09:15]} 19. Qd2 {[%clk
0:35:14]} 19... Qg5 {[%clk 0:05:51]} 20. hxg6 {[%clk 0:31:40]} 20... hxg6 {[%clk
0:05:57]} 21. O-O-O {[%clk 0:29:14]} 21... a5 {[%clk 0:03:22]} 22. Kb1 {[%clk
0:28:37]} 22... O-O-O {[%clk 0:03:06]} 23. Qd3 {[%clk 0:28:34]} 23... Rxf2
{[%clk 0:01:52]} 24. Qa6+ {[%clk 0:27:10]} 24... Kd7 {[%clk 0:01:51]} 25. Nf5
{[%clk 0:22:19]} 25... Rxf5 {[%clk 0:01:34]} 26. exf5 {[%clk 0:22:08]} 26... d5
{[%clk 0:01:02]} 27. f6 {[%clk 0:18:03]} 27... Bf8 {[%clk 0:00:38]} 28. Bxd5
{[%clk 0:16:30]} 28... Qxf6 {[%clk 0:00:32]} 29. Rxd4 {[%clk 0:16:39]} 1-0

[Variant "Standard"]
[Site "Europe Echecs"]

[Event "Sunway Sitges Chess Festival"]
[Date "2024.12.22"]
[White "Liu, Xiangyi"]
[Black "Maurizzi, Marc`Andria"]
[WhiteElo "2372"]
[BlackElo "2477"]
[Round "10.6"]
[Result "0-1"]
[TimeControl "40/5400+30:1800+30"]

1. e4 {[%clk 1:09:59]} 1... c5 {[%clk 1:30:58]} 2. Nf3 {[%clk 1:10:24]} 2... d6
{[%clk 1:31:26]} 3. g3 {[%clk 1:10:44]} 3... Nf6 {[%clk 1:31:21]} 4. c3 {[%clk
1:10:12]} 4... g6 {[%clk 1:27:20]} 5. Bg2 {[%clk 1:10:38]} 5... Bg7 {[%clk
1:27:47]} 6. O-O {[%clk 1:10:49]} 6... O-O {[%clk 1:28:13]} 7. Re1 {[%clk
1:10:37]} 7... Nc6 {[%clk 1:27:12]} 8. h3 {[%clk 1:10:45]} 8... Nd7 {[%clk
1:19:49]} 9. d4 {[%clk 1:07:27]} 9... Rb8 {[%clk 1:09:17]} 10. a4 {[%clk
1:01:46]} 10... b6 {[%clk 1:03:59]} 11. Na3 {[%clk 0:55:36]} 11... Bb7 {[%clk
1:00:33]} 12. Rb1 {[%clk 0:52:56]} 12... Rc8 {[%clk 0:54:50]} 13. d5 {[%clk
0:40:54]} 13... Nce5 {[%clk 0:51:39]} 14. Nxe5 {[%clk 0:40:19]} 14... Nxe5
{[%clk 0:52:05]} 15. f4 {[%clk 0:39:45]} 15... Nd7 {[%clk 0:49:56]} 16. Nb5
{[%clk 0:38:10]} 16... a6 {[%clk 0:49:09]} 17. Na7 {[%clk 0:34:48]} 17... Rc7
{[%clk 0:49:06]} 18. e5 {[%clk 0:32:44]} 18... Nb8 {[%clk 0:42:29]} 19. Qb3
{[%clk 0:31:50]} 19... e6 {[%clk 0:24:09]} 20. Qxb6 {[%clk 0:26:11]} 20... Bxd5
{[%clk 0:19:27]} 21. Bxd5 {[%clk 0:24:18]} 21... exd5 {[%clk 0:19:48]} 22. exd6
{[%clk 0:23:21]} 22... Rd7 {[%clk 0:18:16]} 23. Qxc5 {[%clk 0:22:56]} 23... d4
{[%clk 0:18:11]} 24. cxd4 {[%clk 0:15:00]} 24... Rxd6 {[%clk 0:16:38]} 25. Be3
{[%clk 0:15:23]} 25... Qd7 {[%clk 0:15:14]} 26. Bf2 {[%clk 0:03:11]} 26... Rd5
{[%clk 0:13:22]} 27. Qe7 {[%clk 0:01:42]} 27... Qxh3 {[%clk 0:12:58]} 28. Rbd1
{[%clk 0:00:-17]} 28... Rfd8 {[%clk 0:11:36]} 29. Qh4 {[%clk 0:00:48]} 29... Qd7
{[%clk 0:10:48]} 30. Re7 {[%clk 0:00:49]} 30... Qxa4 {[%clk 0:10:33]} 31. Rde1
{[%clk 0:01:05]} 31... Rf8 {[%clk 0:04:07]} 32. b3 {[%clk 0:00:54]} 32... Qxb3
{[%clk 0:04:13]} 33. Re8 {[%clk 0:01:09]} 33... Rh5 {[%clk 0:03:58]} 34. Qg4
{[%clk 0:00:47]} 34... Qd5 {[%clk 0:03:42]} 35. Kf1 {[%clk 0:00:44]} 35... Rh1+
{[%clk 0:03:39]} 36. Bg1 {[%clk 0:00:51]} 36... Bxd4 {[%clk 0:02:54]} 0-1

[Variant "Standard"]
[Site "Europe Echecs"]

[Event "Sunway Sitges Chess Festival"]
[Date "2024.12.22"]
[White "Sofronie, Iulian"]
[Black "Siddharth, Jagadeesh"]
[WhiteElo "2368"]
[BlackElo "2510"]
[Round "10.7"]
[Result "1/2-1/2"]
[TimeControl "40/5400+30:1800+30"]

1. d4 {[%clk 1:30:57]} 1... Nf6 {[%clk 1:22:35]} 2. Bf4 {[%clk 1:31:02]} 2... d5
{[%clk 1:22:58]} 3. e3 {[%clk 1:31:14]} 3... c5 {[%clk 1:23:21]} 4. Nc3 {[%clk
1:31:37]} 4... cxd4 {[%clk 1:23:44]} 5. exd4 {[%clk 1:32:03]} 5... Bg4 {[%clk
1:24:05]} 6. f3 {[%clk 1:17:07]} 6... Bd7 {[%clk 1:24:04]} 7. Nb5 {[%clk
1:12:08]} 7... Bxb5 {[%clk 1:24:26]} 8. Bxb5+ {[%clk 1:12:34]} 8... Nc6 {[%clk
1:24:48]} 9. c3 {[%clk 1:11:13]} 9... e6 {[%clk 1:25:10]} 10. Ne2 {[%clk
1:09:31]} 10... Bd6 {[%clk 1:25:32]} 11. Qa4 {[%clk 1:08:36]} 11... Qc7 {[%clk
1:22:40]} 12. Bxd6 {[%clk 1:07:48]} 12... Qxd6 {[%clk 1:23:07]} 13. Nc1 {[%clk
1:02:43]} 13... O-O {[%clk 1:16:35]} 14. Bxc6 {[%clk 1:03:00]} 14... bxc6 {[%clk
1:15:01]} 15. Nd3 {[%clk 1:03:25]} 15... Nd7 {[%clk 1:14:30]} 16. O-O {[%clk
1:00:44]} 16... c5 {[%clk 1:13:23]} 17. dxc5 {[%clk 0:33:09]} 17... Nxc5 {[%clk
1:13:23]} 18. Qb4 {[%clk 0:31:25]} 18... Rfc8 {[%clk 1:13:20]} 19. Nxc5 {[%clk
0:30:37]} 19... Rab8 {[%clk 1:07:22]} 20. Qd4 {[%clk 0:30:31]} 20... Qxc5 {[%clk
1:06:54]} 21. Qxc5 {[%clk 0:30:55]} 21... Rxc5 {[%clk 1:07:18]} 22. Rf2 {[%clk
0:31:21]} 22... g5 {[%clk 1:00:41]} 23. Rd1 {[%clk 0:27:54]} 23... Rc4 {[%clk
1:00:09]} 24. Kf1 {[%clk 0:25:12]} 24... a5 {[%clk 0:59:58]} 25. Rd4 {[%clk
0:24:31]} 25... Rxd4 {[%clk 0:51:23]} 26. cxd4 {[%clk 0:24:57]} 26... Kf8 {[%clk
0:51:23]} 27. Rd2 {[%clk 0:24:42]} 27... Ke7 {[%clk 0:51:40]} 28. Ke2 {[%clk
0:25:00]} 28... Kd6 {[%clk 0:52:06]} 29. Kd3 {[%clk 0:18:21]} 29... f6 {[%clk
0:50:18]} 30. b3 {[%clk 0:17:46]} 30... e5 {[%clk 0:49:53]} 31. Rb2 {[%clk
0:14:03]} 31... Rc8 {[%clk 0:43:38]} 32. b4 {[%clk 0:06:19]} 32... Rc4 {[%clk
0:42:05]} 33. dxe5+ {[%clk 0:06:43]} 33... fxe5 {[%clk 0:42:30]} 34. a3 {[%clk
0:07:01]} 34... a4 {[%clk 0:32:05]} 35. b5 {[%clk 0:04:38]} 35... Rc7 {[%clk
0:32:33]} 36. Rb4 {[%clk 0:04:53]} 36... Rb7 {[%clk 0:32:45]} 37. h4 {[%clk
0:04:53]} 37... gxh4 {[%clk 0:28:34]} 38. Rxa4 {[%clk 0:04:51]} 38... Rxb5
{[%clk 0:21:13]} 39. Rxh4 {[%clk 0:04:25]} 39... Rb3+ {[%clk 0:21:07]} 40. Ke2
{[%clk 0:34:35]} 40... Rxa3 {[%clk 0:45:33]} 41. Rxh7 {[%clk 0:35:01]} 41...
Ra2+ {[%clk 0:45:55]} 42. Kf1 {[%clk 0:35:26]} 42... d4 {[%clk 0:45:51]} 43. Rh8
{[%clk 0:35:09]} 43... Ke7 {[%clk 0:41:39]} 44. Rb8 {[%clk 0:35:08]} 44... Kf6
{[%clk 0:39:16]} 45. Rd8 {[%clk 0:35:19]} 45... Rc2 {[%clk 0:36:12]} 46. f4
{[%clk 0:34:58]} 1/2-1/2

[Variant "Standard"]
[Site "Europe Echecs"]